fUSD/lending_fUSD_20260518
["ID","MTS","AMOUNT","RATE_DAILY","PERIOD"]
[422546175,1779053388000,179.03,6.509e-05,2]
[422546178,1779053431000,-2844.64,0.00012802,2]
[422546179,1779053431000,-389.30575065,0.00013235,2]
[422546181,1779053431000,-2927.09,0.00013279,2]
[422546180,1779053431000,-2000.0,0.00013241,2]
[422546182,1779053431000,-166.66,0.00013293,2]
[422546200,1779053432000,-182.19023556,0.00013607,2]
[422546193,1779053432000,-9999.99,0.00013557,2]
[422546194,1779053432000,-299.99,0.00013557,2]
[422546196,1779053432000,-1041.03364662,0.00013599,2]
[422546199,1779053432000,-984.154,0.00013607,2]
[422546195,1779053432000,-700.29,0.00013566,2]
[422546190,1779053432000,-6801.3071,0.00013557,2]
[422546202,1779053432000,-3129.27,0.00013608,2]
[422546192,1779053432000,-996.81187221,0.00013557,2]
[422546189,1779053432000,-5000.0,0.00013557,2]
[422546197,1779053432000,-7271.38958308,0.00013599,2]
[422546188,1779053432000,-99095.1757,0.00013557,2]
[422546186,1779053432000,-1200.0,0.00013556,2]
[422546187,1779053432000,-150.0,0.00013556,2]
[422546184,1779053432000,-189.21,0.00013355,2]
[422546183,1779053432000,-165.46,0.00013329,2]
[422546185,1779053432000,-575.01195376,0.0001345,2]
[422546191,1779053432000,-150.99,0.00013557,2]
[422546212,1779053432000,-500.0,0.00013656,2]
[422546198,1779053432000,-11296.91429361,0.00013599,2]
[422546204,1779053432000,-500.0,0.00013656,2]
[422546213,1779053432000,-500.0,0.00013656,2]
[422546216,1779053432000,-617.94200188,0.00013656,2]
[422546224,1779053432000,-500.0,0.00013656,2]
[422546223,1779053432000,-500.0,0.00013656,2]
[422546220,1779053432000,-500.0,0.00013656,2]
[422546221,1779053432000,-500.0,0.00013656,2]
[422546222,1779053432000,-500.0,0.00013656,2]
[422546218,1779053432000,-500.0,0.00013656,2]
[422546219,1779053432000,-500.0,0.00013656,2]
[422546225,1779053432000,-89301.18320511,0.00013657,2]
[422546217,1779053432000,-500.0,0.00013656,2]
[422546214,1779053432000,-500.0,0.00013656,2]
[422546209,1779053432000,-500.0,0.00013656,2]
[422546206,1779053432000,-500.0,0.00013656,2]
[422546207,1779053432000,-441.49069618,0.00013656,2]
[422546208,1779053432000,-500.0,0.00013656,2]
[422546203,1779053432000,-212.39603557,0.00013647,2]
[422546205,1779053432000,-311.07666925,0.00013656,2]
[422546201,1779053432000,-1062.76,0.00013608,2]
[422546215,1779053432000,-500.0,0.00013656,2]
[422546235,1779053438000,-497.32160849,0.00013601,2]
[422546264,1779053440000,-1068.98655423,0.00013601,2]
[422546267,1779053443000,-54.44602771,0.00013601,2]
[422546266,1779053443000,-2.0160326,0.00013601,2]
[422546278,1779053446000,-655.63024752,0.00013601,2]
[422546292,1779053498000,1064.0,0.0003,120]
[422546295,1779053880000,7256.0,0.000301,120]
[422546297,1779054097000,-420.17,0.00012942,2]
[422546298,1779054541000,1000.0,0.00030131,120]
[422546310,1779054633000,-4168.5776,0.00013557,2]
[422546302,1779054633000,-2000.0,0.0001293,2]
[422546303,1779054633000,-151.36,0.00013235,2]
[422546304,1779054633000,-420.17,0.00013266,2]
[422546305,1779054633000,-172.3,0.0001337,2]
[422546307,1779054633000,-172.55,0.00013396,2]
[422546308,1779054633000,-1200.0,0.00013556,2]
[422546309,1779054633000,-1068.9866,0.00013557,2]
[422546312,1779054633000,-787.323,0.00013557,2]
[422546306,1779054633000,-154.61,0.00013384,2]
[422546318,1779054633000,-8408.46727034,0.00013588,2]
[422546313,1779054633000,-150.0,0.00013587,2]
[422546319,1779054633000,-63.0846505,0.00013588,2]
[422546321,1779054633000,-5643.9733495,0.00013601,2]
[422546315,1779054633000,-999.99,0.00013587,2]
[422546316,1779054633000,-150.99,0.00013587,2]
[422546322,1779054633000,-252.13695298,0.00013601,2]
[422546314,1779054633000,-9999.99,0.00013587,2]
[422546320,1779054633000,-420.17,0.00013589,2]
[422546317,1779054633000,-27172.30990626,0.00013588,2]
[422546311,1779054633000,-5000.0,0.00013557,2]
[422546345,1779054638000,-5192.73,0.00013698,2]
[422546344,1779054638000,-5192.73,0.00013698,2]
[422546335,1779054638000,-502.56,0.00013698,2]
[422546333,1779054638000,-502.56,0.00013698,2]
[422546331,1779054638000,-184.444443,0.00013657,2]
[422546326,1779054638000,-4596.35056007,0.00013601,2]
[422546329,1779054638000,-184.444443,0.00013657,2]
[422546332,1779054638000,-184.444443,0.00013657,2]
[422546330,1779054638000,-184.444443,0.00013657,2]
[422546334,1779054638000,-502.56,0.00013698,2]
[422546328,1779054638000,-151.0,0.00013657,2]
[422546346,1779054638000,-5192.73,0.00013698,2]
[422546327,1779054638000,-151.0,0.00013654,2]
[422546337,1779054638000,-502.56,0.00013698,2]
[422546336,1779054638000,-502.56,0.00013698,2]
[422546355,1779054638000,-500.0,0.00013698,2]
[422546357,1779054638000,-126.56260414,0.00013698,2]
[422546353,1779054638000,-500.0,0.00013698,2]
[422546350,1779054638000,-442.23348192,0.00013698,2]
[422546349,1779054638000,-500.0,0.00013698,2]
[422546351,1779054638000,-151.0,0.00013698,2]
[422546347,1779054638000,-5192.73,0.00013698,2]
[422546342,1779054638000,-500.0,0.00013698,2]
[422546343,1779054638000,-5192.73,0.00013698,2]
[422546340,1779054638000,-502.56,0.00013698,2]
[422546348,1779054638000,-5192.73,0.00013698,2]
[422546341,1779054638000,-500.0,0.00013698,2]
[422546456,1779054640000,-500.0,0.00013698,2]
[422546445,1779054640000,-525.7,0.00013698,2]
[422546448,1779054640000,-525.7,0.00013698,2]
[422546441,1779054640000,-500.0,0.00013698,2]
[422546447,1779054640000,-525.7,0.00013698,2]
[422546453,1779054640000,-500.0,0.00013698,2]
[422546457,1779054640000,-500.0,0.00013698,2]
[422546452,1779054640000,-500.0,0.00013698,2]
[422546449,1779054640000,-525.7,0.00013698,2]
[422546451,1779054640000,-500.0,0.00013698,2]
[422546446,1779054640000,-525.7,0.00013698,2]
[422546436,1779054640000,-500.0,0.00013698,2]
[422546442,1779054640000,-500.0,0.00013698,2]
[422546444,1779054640000,-525.7,0.00013698,2]
[422546438,1779054640000,-500.0,0.00013698,2]
[422546450,1779054640000,-375.48613759,0.00013698,2]
[422546439,1779054640000,-500.0,0.00013698,2]
[422546437,1779054640000,-372.71342826,0.00013698,2]
[422546435,1779054640000,-500.0,0.00013698,2]
[422546433,1779054640000,-1174606.9216164,0.00013562,2]
[422546434,1779054640000,-373.43739586,0.00013698,2]
[422546459,1779054640000,-500.0,0.00013698,2]
[422546443,1779054640000,-309.02129379,0.00013698,2]
[422546463,1779054640000,-500.0,0.00013698,2]
[422546440,1779054640000,-500.0,0.00013698,2]
[422546462,1779054640000,-500.0,0.00013698,2]
[422546460,1779054640000,-500.0,0.00013698,2]
[422546479,1779054640000,-184.444443,0.00013698,2]
[422546482,1779054640000,-500.0,0.00013698,2]
[422546478,1779054640000,-184.444443,0.00013698,2]
[422546481,1779054640000,-500.0,0.00013698,2]
[422546480,1779054640000,-184.444443,0.00013698,2]
[422546477,1779054640000,-184.444443,0.00013698,2]
[422546474,1779054640000,-500.0,0.00013698,2]
[422546473,1779054640000,-500.0,0.00013698,2]
[422546471,1779054640000,-500.0,0.00013698,2]
[422546466,1779054640000,-500.0,0.00013698,2]
[422546468,1779054640000,-500.0,0.00013698,2]
[422546472,1779054640000,-492.66,0.00013698,2]
[422546483,1779054640000,-184.444443,0.00013698,2]
[422546469,1779054640000,-500.0,0.00013698,2]
[422546476,1779054640000,-507.15627863,0.00013698,2]
[422546464,1779054640000,-500.0,0.00013698,2]
[422546465,1779054640000,-500.0,0.00013698,2]
[422546475,1779054640000,-500.0,0.00013698,2]
[422546470,1779054640000,-500.0,0.00013698,2]
[422546461,1779054640000,-500.0,0.00013698,2]
[422546458,1779054640000,-500.0,0.00013698,2]
[422546454,1779054640000,-500.0,0.00013698,2]
[422546467,1779054640000,-500.0,0.00013698,2]
[422546455,1779054640000,-508.45785621,0.00013698,2]
[422546530,1779054641000,-163.22,0.000137,2]
[422546525,1779054641000,-156.395135,0.00013699,2]
[422546520,1779054641000,-200.0,0.00013699,2]
[422546527,1779054641000,-151.0,0.00013699,2]
[422546521,1779054641000,-431.71,0.00013699,2]
[422546524,1779054641000,-151.0,0.00013699,2]
[422546522,1779054641000,-166.66,0.00013699,2]
[422546523,1779054641000,-151.0,0.00013699,2]
[422546532,1779054641000,-166.66,0.00013836,2]
[422546526,1779054641000,-151.0,0.00013699,2]
[422546528,1779054641000,-151.0,0.00013699,2]
[422546531,1779054641000,-151.0,0.00013741,2]
[422546539,1779054641000,-184.444443,0.00013973,2]
[422546545,1779054641000,-2500.0,0.00014137,2]
[422546544,1779054641000,-166.66,0.0001411,2]
[422546535,1779054641000,-500.0,0.00013972,2]
[422546533,1779054641000,-152.0,0.00013905,2]
[422546534,1779054641000,-420.17,0.00013913,2]
[422546536,1779054641000,-166.66,0.00013973,2]
[422546538,1779054641000,-184.444443,0.00013973,2]
[422546537,1779054641000,-184.444443,0.00013973,2]
[422546541,1779054641000,-250.0,0.00014,2]
[422546540,1779054641000,-184.444443,0.00013973,2]
[422546511,1779054641000,-483.44966111,0.00013698,2]
[422546542,1779054641000,-152.025206,0.00014012,2]
[422546543,1779054641000,-151.0,0.0001403,2]
[422546529,1779054641000,-151.0,0.00013699,2]
[422546515,1779054641000,-151.0,0.00013698,2]
[422546493,1779054641000,-500.0,0.00013698,2]
[422546512,1779054641000,-151.0,0.00013698,2]
[422546547,1779054641000,-151.0,0.00014175,2]
[422546488,1779054641000,-500.0,0.00013698,2]
[422546489,1779054641000,-500.0,0.00013698,2]
[422546484,1779054641000,-184.444443,0.00013698,2]
[422546486,1779054641000,-184.444443,0.00013698,2]
[422546487,1779054641000,-500.0,0.00013698,2]
[422546485,1779054641000,-184.444443,0.00013698,2]
[422546491,1779054641000,-490.0,0.00013698,2]
[422546490,1779054641000,-500.0,0.00013698,2]
[422546502,1779054641000,-151.0,0.00013698,2]
[422546503,1779054641000,-151.0,0.00013698,2]
[422546505,1779054641000,-151.0,0.00013698,2]
[422546504,1779054641000,-151.0,0.00013698,2]
[422546513,1779054641000,-151.0,0.00013698,2]
[422546496,1779054641000,-151.0,0.00013698,2]
[422546498,1779054641000,-151.0,0.00013698,2]
[422546500,1779054641000,-151.0,0.00013698,2]
[422546495,1779054641000,-151.0,0.00013698,2]
[422546506,1779054641000,-151.0,0.00013698,2]
[422546510,1779054641000,-500.0,0.00013698,2]
[422546507,1779054641000,-160.106896,0.00013698,2]
[422546509,1779054641000,-500.0,0.00013698,2]
[422546517,1779054641000,-151.0,0.00013698,2]
[422546508,1779054641000,-500.0,0.00013698,2]
[422546518,1779054641000,-500.0,0.00013698,2]
[422546514,1779054641000,-151.0,0.00013698,2]
[422546516,1779054641000,-151.0,0.00013698,2]
[422546519,1779054641000,-500.0,0.00013698,2]
[422546492,1779054641000,-500.0,0.00013698,2]
[422546551,1779054641000,-308.0,0.000142,2]
[422546569,1779054641000,-151.0,0.00014223,2]
[422546546,1779054641000,-350.0,0.00014153,2]
[422546584,1779054641000,-500.0,0.00014279,2]
[422546587,1779054641000,-500.0,0.00014279,2]
[422546594,1779054641000,-500.0,0.00014308,2]
[422546586,1779054641000,-500.0,0.00014279,2]
[422546585,1779054641000,-500.0,0.00014279,2]
[422546583,1779054641000,-500.0,0.00014279,2]
[422546593,1779054641000,-151.0,0.00014279,2]
[422546590,1779054641000,-500.0,0.00014279,2]
[422546589,1779054641000,-500.0,0.00014279,2]
[422546591,1779054641000,-500.0,0.00014279,2]
[422546588,1779054641000,-500.0,0.00014279,2]
[422546592,1779054641000,-151.0,0.00014279,2]
[422546596,1779054641000,-151.0,0.00014334,2]
[422546595,1779054641000,-6389.84366268,0.00014334,2]
[422546606,1779054641000,-3100.0,0.000146,5]
[422546598,1779054641000,-151.0,0.00014334,2]
[422546597,1779054641000,-151.0,0.00014334,2]
[422546599,1779054641000,-166.66,0.00014384,2]
[422546601,1779054641000,-1500.0,0.000145,5]
[422546600,1779054641000,-151.0,0.00014463,2]
[422546605,1779054641000,-500.0,0.00014582,2]
[422546602,1779054641000,-2000.0,0.00014546,2]
[422546603,1779054641000,-500.0,0.00014571,2]
[422546604,1779054641000,-500.0,0.00014571,2]
[422546608,1779054641000,-669.23,0.000147,2]
[422546549,1779054641000,-1084.0,0.00014179,5]
[422546609,1779054641000,-4700.0,0.000147,5]
[422546582,1779054641000,-500.0,0.00014279,2]
[422546570,1779054641000,-151.0,0.00014223,2]
[422546607,1779054641000,-350.0,0.00014642,2]
[422546579,1779054641000,-151.0,0.00014276,2]
[422546578,1779054641000,-151.0,0.00014276,2]
[422546553,1779054641000,-615.80294249,0.00014223,2]
[422546552,1779054641000,-600.0,0.00014223,2]
[422546557,1779054641000,-300.0,0.00014223,2]
[422546550,1779054641000,-1423.0,0.00014179,5]
[422546556,1779054641000,-300.0,0.00014223,2]
[422546554,1779054641000,-300.0,0.00014223,2]
[422546555,1779054641000,-300.0,0.00014223,2]
[422546559,1779054641000,-2500.0,0.00014223,2]
[422546558,1779054641000,-300.0,0.00014223,2]
[422546563,1779054641000,-2500.0,0.00014223,2]
[422546560,1779054641000,-2500.0,0.00014223,2]
[422546562,1779054641000,-2500.0,0.00014223,2]
[422546561,1779054641000,-2500.0,0.00014223,2]
[422546548,1779054641000,-151.0,0.00014175,2]
[422546564,1779054641000,-184.444443,0.00014223,2]
[422546568,1779054641000,-151.0,0.00014223,2]
[422546576,1779054641000,-166.66,0.00014247,2]
[422546571,1779054641000,-229.178504,0.00014223,2]
[422546573,1779054641000,-420.17,0.00014237,2]
[422546575,1779054641000,-155.4004484,0.00014246,2]
[422546574,1779054641000,-350.0,0.00014242,2]
[422546580,1779054641000,-151.0,0.00014277,2]
[422546572,1779054641000,-151.0,0.00014223,2]
[422546581,1779054641000,-500.0,0.00014279,2]
[422546567,1779054641000,-184.444435,0.00014223,2]
[422546566,1779054641000,-184.444443,0.00014223,2]
[422546565,1779054641000,-184.444443,0.00014223,2]
[422546577,1779054641000,-150.0,0.00014249,2]
[422546649,1779054642000,-5192.73,0.00014998,2]
[422546647,1779054642000,-1680.0,0.00014912,2]
[422546648,1779054642000,-502.56,0.00014998,2]
[422546646,1779054642000,-469.94,0.00014909,2]
[422546640,1779054642000,-977.66430888,0.000149,2]
[422546643,1779054642000,-881.78572577,0.000149,2]
[422546642,1779054642000,-404.53013334,0.000149,2]
[422546645,1779054642000,-466.72784303,0.00014909,2]
[422546641,1779054642000,-4777.65784191,0.000149,2]
[422546651,1779054642000,-500.0,0.00014998,2]
[422546644,1779054642000,-6625.93576102,0.000149,2]
[422546636,1779054642000,-208.98136464,0.000149,2]
[422546662,1779054642000,-502.56,0.00014999,2]
[422546652,1779054642000,-500.0,0.00014998,2]
[422546654,1779054642000,-502.56,0.00014999,2]
[422546663,1779054642000,-502.56,0.00014999,2]
[422546653,1779054642000,-500.0,0.00014999,2]
[422546657,1779054642000,-502.56,0.00014999,2]
[422546656,1779054642000,-502.56,0.00014999,2]
[422546661,1779054642000,-502.56,0.00014999,2]
[422546658,1779054642000,-502.56,0.00014999,2]
[422546664,1779054642000,-502.56,0.00014999,2]
[422546660,1779054642000,-502.56,0.00014999,2]
[422546655,1779054642000,-502.56,0.00014999,2]
[422546639,1779054642000,-7900.0,0.000149,5]
[422546650,1779054642000,-525.7,0.00014998,2]
[422546638,1779054642000,-258.601628,0.000149,2]
[422546622,1779054642000,-180.22044,0.00014879,2]
[422546630,1779054642000,-2000.0,0.00014879,2]
[422546665,1779054642000,-502.56,0.00014999,2]
[422546610,1779054642000,-151.0,0.000147,2]
[422546611,1779054642000,-250.187728,0.000147,2]
[422546613,1779054642000,-6300.0,0.000148,5]
[422546612,1779054642000,-255.0,0.00014701,2]
[422546614,1779054642000,-500.0,0.00014856,2]
[422546615,1779054642000,-261.25020751,0.00014879,2]
[422546617,1779054642000,-1000.0,0.00014879,2]
[422546618,1779054642000,-1000.0,0.00014879,2]
[422546619,1779054642000,-200.0,0.00014879,2]
[422546625,1779054642000,-180.22044,0.00014879,2]
[422546616,1779054642000,-151.0,0.00014879,2]
[422546620,1779054642000,-180.22044,0.00014879,2]
[422546626,1779054642000,-2000.0,0.00014879,2]
[422546621,1779054642000,-180.22043,0.00014879,2]
[422546623,1779054642000,-180.22044,0.00014879,2]
[422546624,1779054642000,-180.22044,0.00014879,2]
[422546627,1779054642000,-2000.0,0.00014879,2]
[422546628,1779054642000,-2000.0,0.00014879,2]
[422546631,1779054642000,-2000.0,0.00014879,2]
[422546633,1779054642000,-151.36,0.00014889,2]
[422546632,1779054642000,-200.0,0.0001488,2]
[422546634,1779054642000,-6383.98895363,0.00014899,2]
[422546629,1779054642000,-2000.0,0.00014879,2]
[422546635,1779054642000,-10384.8434007,0.00014899,2]
[422546637,1779054642000,-6261.6979,0.000149,2]
[422546667,1779054642000,-502.56,0.00014999,2]
[422546659,1779054642000,-502.56,0.00014999,2]
[422546669,1779054642000,-502.56,0.00014999,2]
[422546697,1779054642000,-525.7,0.00014999,2]
[422546696,1779054642000,-525.7,0.00014999,2]
[422546698,1779054642000,-525.7,0.00014999,2]
[422546702,1779054642000,-525.7,0.00014999,2]
[422546701,1779054642000,-525.7,0.00014999,2]
[422546713,1779054642000,-182.00213245,0.00014999,2]
[422546714,1779054642000,-500.0,0.00014999,2]
[422546703,1779054642000,-525.7,0.00014999,2]
[422546705,1779054642000,-500.0,0.00014999,2]
[422546712,1779054642000,-500.0,0.00014999,2]
[422546704,1779054642000,-525.74572099,0.00014999,2]
[422546707,1779054642000,-500.0,0.00014999,2]
[422546699,1779054642000,-525.7,0.00014999,2]
[422546711,1779054642000,-500.0,0.00014999,2]
[422546709,1779054642000,-500.0,0.00014999,2]
[422546710,1779054642000,-500.0,0.00014999,2]
[422546708,1779054642000,-500.0,0.00014999,2]
[422546717,1779054642000,-500.0,0.00014999,2]
[422546715,1779054642000,-500.0,0.00014999,2]
[422546718,1779054642000,-500.0,0.00014999,2]
[422546727,1779054642000,-370.11683761,0.00014999,2]
[422546720,1779054642000,-500.0,0.00014999,2]
[422546722,1779054642000,-433.06243552,0.00014999,2]
[422546725,1779054642000,-401.99355576,0.00014999,2]
[422546721,1779054642000,-588.50661964,0.00014999,2]
[422546668,1779054642000,-502.56,0.00014999,2]
[422546706,1779054642000,-500.0,0.00014999,2]
[422546695,1779054642000,-525.7,0.00014999,2]
[422546719,1779054642000,-500.0,0.00014999,2]
[422546691,1779054642000,-525.7,0.00014999,2]
[422546670,1779054642000,-502.63,0.00014999,2]
[422546675,1779054642000,-5192.73,0.00014999,2]
[422546723,1779054642000,-500.0,0.00014999,2]
[422546672,1779054642000,-5192.73,0.00014999,2]
[422546671,1779054642000,-5192.73,0.00014999,2]
[422546666,1779054642000,-502.56,0.00014999,2]
[422546676,1779054642000,-5192.73,0.00014999,2]
[422546673,1779054642000,-5192.73,0.00014999,2]
[422546677,1779054642000,-5192.73,0.00014999,2]
[422546680,1779054642000,-5192.73,0.00014999,2]
[422546687,1779054642000,-5192.7546713,0.00014999,2]
[422546678,1779054642000,-5192.73,0.00014999,2]
[422546674,1779054642000,-5192.73,0.00014999,2]
[422546679,1779054642000,-5192.73,0.00014999,2]
[422546693,1779054642000,-525.7,0.00014999,2]
[422546688,1779054642000,-525.7,0.00014999,2]
[422546700,1779054642000,-525.7,0.00014999,2]
[422546692,1779054642000,-525.7,0.00014999,2]
[422546689,1779054642000,-525.7,0.00014999,2]
[422546684,1779054642000,-5192.73,0.00014999,2]
[422546690,1779054642000,-525.7,0.00014999,2]
[422546682,1779054642000,-5192.73,0.00014999,2]
[422546685,1779054642000,-5192.73,0.00014999,2]
[422546683,1779054642000,-5192.73,0.00014999,2]
[422546681,1779054642000,-5192.73,0.00014999,2]
[422546686,1779054642000,-5192.73,0.00014999,2]
[422546694,1779054642000,-525.7,0.00014999,2]
[422546740,1779054643000,-552.52322654,0.00015,2]
[422546738,1779054643000,-1579.06037225,0.00015,2]
[422546739,1779054643000,-45500.00002,0.00015,2]
[422546737,1779054643000,-395.16348613,0.00015,2]
[422546734,1779054643000,-261.25020751,0.00014999,2]
[422546735,1779054643000,-212.32691099,0.00014999,2]
[422546736,1779054643000,-4680.7102815,0.00015,2]
[422546732,1779054643000,-391.955,0.00015,2]
[422546748,1779054646000,-6082.477779,0.00015,2]
[422546749,1779054646000,-301.9539038,0.00015,2]
[422546750,1779054646000,-602.0,0.00015,2]
[422546755,1779054725000,2000.0,0.0003013,120]
[422546756,1779054727000,2000.0,0.0003013,120]
[422546757,1779055244000,162.62,6.99e-05,2]
[422546758,1779055741000,1000.0,0.0003013,120]
[422546777,1779055831000,-500.0,0.00013698,2]
[422546778,1779055831000,-500.0,0.00013698,2]
[422546783,1779055831000,-309.35,0.00013699,2]
[422546779,1779055831000,-500.0,0.00013698,2]
[422546786,1779055831000,-2500.0,0.00013699,2]
[422546787,1779055831000,-166.66,0.00013699,2]
[422546788,1779055831000,-162.62,0.00013707,2]
[422546789,1779055831000,-163.73,0.00013713,2]
[422546794,1779055831000,-166.66,0.00013836,2]
[422546791,1779055831000,-2000.0,0.00013754,2]
[422546792,1779055831000,-196.33462482,0.00013808,21]
[422546790,1779055831000,-150.0,0.00013753,2]
[422546784,1779055831000,-150.99,0.00013699,2]
[422546781,1779055831000,-9999.99,0.00013699,2]
[422546776,1779055831000,-500.0,0.00013698,2]
[422546780,1779055831000,-299.99,0.00013699,2]
[422546775,1779055831000,-500.0,0.00013698,2]
[422546774,1779055831000,-500.0,0.00013698,2]
[422546773,1779055831000,-500.0,0.00013698,2]
[422546770,1779055831000,-3618.29377956,0.00013612,2]
[422546769,1779055831000,-500.0,0.00013435,2]
[422546771,1779055831000,-201.29,0.00013651,2]
[422546767,1779055831000,-250.0,0.00011383,2]
[422546765,1779055831000,-250.0,0.00010866,2]
[422546768,1779055831000,-181.74,0.00013423,2]
[422546764,1779055831000,-162.62,0.00010348,2]
[422546766,1779055831000,-250.0,0.00011383,2]
[422546795,1779055831000,-166.66,0.00013973,2]
[422546782,1779055831000,-6231.82,0.00013699,2]
[422546793,1779055831000,-196.33462482,0.00013821,21]
[422546772,1779055831000,-1200.0,0.00013697,2]
[422546796,1779055831000,-1000.0,0.00013989,2]
[422546785,1779055831000,-200.0,0.00013699,2]
[422546844,1779055831000,-150.0,0.00014535,2]
[422546838,1779055831000,-350.0,0.00014523,2]
[422546846,1779055831000,-150.0,0.00014542,2]
[422546836,1779055831000,-278.56667929,0.00014515,2]
[422546834,1779055831000,-400.0,0.000145,5]
[422546832,1779055831000,-150.0,0.00014499,2]
[422546826,1779055831000,-150.0,0.00014499,2]
[422546842,1779055831000,-150.0,0.00014532,2]
[422546824,1779055831000,-150.0,0.00014499,2]
[422546822,1779055831000,-150.0,0.00014499,2]
[422546828,1779055831000,-150.0,0.00014499,2]
[422546820,1779055831000,-150.0,0.00014499,2]
[422546818,1779055831000,-150.0,0.00014499,2]
[422546840,1779055831000,-278.56667929,0.00014531,2]
[422546830,1779055831000,-278.56667929,0.00014499,2]
[422546798,1779055831000,-250.0,0.00014,2]
[422546797,1779055831000,-17038.33341837,0.0001399,2]
[422546801,1779055831000,-166.66,0.00014247,2]
[422546803,1779055831000,-350.0,0.00014343,2]
[422546812,1779055831000,-659.88475889,0.00014473,2]
[422546802,1779055831000,-2339.43596943,0.00014311,2]
[422546804,1779055831000,-166.66,0.00014384,2]
[422546800,1779055831000,-3900.12518833,0.00014138,2]
[422546806,1779055831000,-350.0,0.00014393,2]
[422546810,1779055831000,-166.775,0.00014463,2]
[422546808,1779055831000,-746.052,0.00014463,2]
[422546814,1779055831000,-150.0,0.00014499,2]
[422546816,1779055831000,-150.0,0.00014499,2]
[422546799,1779055831000,-166.66,0.0001411,2]
[422546861,1779055832000,-150.0,0.00014586,2]
[422546876,1779055832000,-3284.8282793,0.00014633,2]
[422546886,1779055832000,-278.56667929,0.00014678,2]
[422546887,1779055832000,-150.0,0.00014682,2]
[422546885,1779055832000,-150.0,0.00014678,2]
[422546883,1779055832000,-150.0,0.00014668,2]
[422546882,1779055832000,-3284.8282793,0.00014667,2]
[422546878,1779055832000,-278.56667929,0.00014645,2]
[422546879,1779055832000,-350.0,0.00014661,2]
[422546881,1779055832000,-150.0,0.00014663,2]
[422546864,1779055832000,-150.0,0.00014597,2]
[422546877,1779055832000,-150.0,0.00014645,2]
[422546862,1779055832000,-278.56667929,0.00014596,2]
[422546869,1779055832000,-150.0,0.00014608,2]
[422546874,1779055832000,-150.0,0.00014629,2]
[422546872,1779055832000,-150.0,0.00014618,2]
[422546865,1779055832000,-3284.82827931,0.000146,2]
[422546873,1779055832000,-278.56667929,0.00014629,2]
[422546871,1779055832000,-278.56667929,0.00014613,2]
[422546860,1779055832000,-150.0,0.00014583,2]
[422546852,1779055832000,-278.56667929,0.00014564,2]
[422546858,1779055832000,-278.56667929,0.0001458,2]
[422546854,1779055832000,-150.0,0.00014564,2]
[422546856,1779055832000,-150.0,0.00014572,2]
[422546850,1779055832000,-150.0,0.00014558,2]
[422546848,1779055832000,-278.56667929,0.00014547,2]
[422546880,1779055832000,-278.56667929,0.00014661,2]
[422546867,1779055832000,-800.0,0.000146,5]
[422546884,1779055832000,-150.0,0.00014673,2]
[422546875,1779055832000,-150.0,0.0001463,2]
[422546889,1779055832000,-150.0,0.00014696,2]